bitfinex/quotes_SOLUSD_20250706
["timestamp","ask_amount","ask_price","bid_price","bid_amount"]
[1751789133238,7.56836985,148.07,148.06,0.94]
[1751789133438,0.03,148.07,148.06,0.94]
[1751789133736,7.56836985,148.07,148.06,0.94]
[1751789133942,18.13653486,148.07,148.02,4.75460251]
[1751789134122,11.35297236,148.06,148.02,4.75460251]
[1751789134320,3.81460251,148.06,148.02,4.75460251]
[1751789134723,7.53701358,148.05,148.02,0.94]
[1751789134925,11.35161609,148.06,148.02,0.94]
[1751789135132,7.53701358,148.05,148.02,0.94]
[1751789135445,6.75447483,148.05,148.02,0.94]
[1751789140153,6.75447483,148.05,148.02,4.75460251]
[1751789140455,6.75447483,148.05,148.02,0.94]
[1751789140629,6.75447483,148.05,148.02,4.75460251]
[1751789141453,18.67964886,148.07,148.02,4.75460251]
[1751789141631,11.35711182,148.06,148.02,4.75460251]
[1751789141825,7.54250931,148.05,148.02,0.94]
[1751789142120,3.81460251,148.06,148.02,0.94]
[1751789142323,7.54250329,148.05,148.02,0.94]
[1751789142524,3.81460251,148.06,148.02,0.94]
[1751789142725,14.29785605,148.05,148.02,0.94]
[1751789142924,6.75453612,148.05,148.02,0.94]
[1751789143343,7.54385385,148.04,148.02,0.94]
[1751789143542,10.56875062,148.06,148.02,4.75460251]
[1751789143847,7.54420425,148.05,148.02,4.75460251]
[1751789144026,7.54420425,148.04,148.02,4.75460251]
[1751789144225,6.75414811,148.06,148.02,4.75460251]
[1751789144441,7.5480819,148.05,148.02,4.75460251]
[1751789144635,7.5480819,148.04,148.02,4.75460251]
[1751789144839,6.75414811,148.06,148.02,4.75460251]
[1751789145049,7.54666872,148.05,148.02,4.75460251]
[1751789145236,7.54666872,148.04,148.03,3.81460251]
[1751789148228,7.54666872,148.04,148.03,3.87460251]
[1751789148537,6.78372812,148.07,148.03,3.87460251]
[1751789148538,6.78372812,148.07,148.03,4.81460251]
[1751789148739,7.55160142,148.06,148.03,4.81460251]
[1751789148927,7.55160142,148.05,148.03,4.81460251]
[1751789149127,7.55160142,148.04,148.03,4.81460251]
[1751789151254,7.55160142,148.04,148.03,1.0]
[1751789151751,7.55160142,148.04,148.03,4.81460251]
[1751789151956,0.03,148.07,148.03,11.56998993]
[1751789152151,7.55515866,148.06,148.05,3.81460251]
[1751789153330,7.55515866,148.06,148.05,4.75460251]
[1751789159252,7.55515866,148.06,148.05,0.94]
[1751789159454,7.55515866,148.06,148.05,4.75460251]
[1751789159651,7.55515866,148.06,148.05,0.94]
[1751789160038,7.55515866,148.06,148.05,4.75460251]
[1751789161454,7.55515866,148.06,148.05,11.50907734]
[1751789162740,7.55515866,148.06,148.05,4.75460251]
[1751789166565,7.55515866,148.06,148.05,11.50907734]
[1751789168545,0.03,148.07,148.05,11.50907734]
[1751789168847,0.03,148.07,148.06,3.81460251]
[1751789169048,7.58305195,148.07,148.06,4.75460251]
[1751789171667,7.58305195,148.07,148.06,0.94]
[1751789171963,7.58305195,148.07,148.06,4.75460251]
[1751789172464,0.03,148.07,148.06,11.50862115]
[1751789181063,0.03,148.07,148.06,158.80862115]
[1751789181266,0.03,148.09,148.08,4.72460251]
[1751789182271,7.57543821,148.09,148.08,4.72460251]
[1751789184249,0.03,148.09,148.08,4.72460251]
[1751789184462,7.57655821,148.09,148.08,4.72460251]
[1751789188580,0.03,148.09,148.08,4.72460251]
[1751789188972,7.58221859,148.09,148.08,4.72460251]
[1751789189282,0.03,148.09,148.08,4.72460251]
[1751789189482,7.58258017,148.09,148.08,4.72460251]
[1751789191563,7.58258017,148.09,148.08,0.91]
[1751789193764,7.58258017,148.09,148.08,4.72460251]
[1751789198578,7.58258017,148.09,148.08,0.91]
[1751789203696,7.58258017,148.09,148.08,4.72460251]
[1751789207688,7.58258017,148.09,148.08,11.47770893]
[1751789216603,6.67258017,148.09,148.08,10.56770893]
[1751789216795,0.2,148.1,148.08,10.56770893]
[1751789216995,0.2,148.1,148.09,3.81460251]
[1751789217682,0.2,148.1,148.09,10.56725292]
[1751789220506,0.03,148.12,148.11,0.2]
[1751789220810,0.03,148.12,148.11,3.81460251]
[1751789222210,0.03,148.12,148.11,10.56634108]
[1751789224693,0.03,148.12,148.11,183.86634108]
[1751789226492,0.2,148.15,148.11,183.86634108]
[1751789226493,0.2,148.15,148.14,0.17]
[1751789226683,0.2,148.15,148.14,3.98460251]
[1751789227593,0.2,148.15,148.14,10.73497378]
[1751789228889,0.2,148.15,148.14,36.73497378]
[1751789230014,0.2,148.15,148.14,184.03497378]
[1751789231402,0.03,148.15,148.14,183.86497378]
[1751789231789,0.03,148.15,148.14,217.84497378]
[1751789232809,0.03,148.15,148.14,214.03037127]
[1751789232993,0.03,148.15,148.14,217.84497378]
[1751789239300,0.03,148.15,148.14,188.03037127]
[1751789239514,0.03,148.15,148.12,188.03119157]
[1751789239722,0.03,148.15,148.12,154.05119157]
[1751789242831,3.81460251,148.14,148.1,6.98]
[1751789243035,3.81460251,148.13,148.1,6.98]
[1751789243232,6.75042231,148.14,148.1,6.98]
[1751789243233,3.81460251,148.12,148.1,6.98]
[1751789243803,3.81460251,148.13,148.1,6.98]
[1751789244725,3.81460251,148.14,148.1,10.79460251]
[1751789244933,1.6335,148.15,148.11,3.81460251]
[1751789247809,1.6335,148.15,148.11,5.97150926]
[1751789248821,7.60500926,148.15,148.11,5.97150926]
[1751789249728,1.6335,148.15,148.11,5.97150926]
[1751789249925,7.60500926,148.15,148.11,12.72324719]
[1751789256330,0.03,148.15,148.11,12.72324719]
[1751789256633,0.03,148.15,148.12,5.97150926]
[1751789259143,0.03,148.15,148.11,6.81173793]
[1751789259320,0.03,148.15,148.11,12.78324719]
[1751789262641,0.03,148.15,148.11,6.81173793]
[1751789262849,13.5467442,148.15,148.11,12.78324719]
[1751789263541,13.5467442,148.15,148.11,6.81173793]
[1751789263727,13.5467442,148.15,148.11,12.78324719]
[1751789264042,20.29670324,148.15,148.11,0.06]
[1751789264218,12.7514683,148.15,148.11,0.06]
[1751789265543,6.00150926,148.15,148.11,0.06]
[1751789265744,13.54736072,148.15,148.11,0.06]
[1751789267717,11.39808685,148.15,148.11,0.06]
[1751789269348,3.82223539,148.13,148.11,0.06]
[1751789270034,3.82223539,148.12,148.11,0.06]
[1751789271640,10.57351813,148.12,148.11,0.06]
[1751789272217,18.1169995,148.12,148.11,0.06]
[1751789277053,7.54348137,148.12,148.11,0.06]
[1751789277233,3.82223539,148.13,148.11,0.06]
[1751789277633,7.54017579,148.12,148.11,0.06]
[1751789278135,3.82223539,148.13,148.11,0.06]
[1751789278335,7.54101491,148.12,148.11,0.06]
[1751789278844,11.3632503,148.12,148.11,0.06]
[1751789279236,18.11453304,148.12,148.11,0.06]
[1751789283150,7.54101491,148.12,148.11,0.06]
[1751789283360,11.3632503,148.12,148.11,0.06]
[1751789283956,18.11453304,148.12,148.11,0.06]
[1751789291867,36.7641819,148.12,148.11,0.06]
[1751789292051,18.64964886,148.11,148.1,0.06]
[1751789292244,30.01289916,148.11,148.1,0.06]
[1751789293058,36.76463773,148.11,148.1,0.06]
[1751789297571,38.42383773,148.11,148.1,0.06]
[1751789302673,26.0,148.08,148.06,0.06]
[1751789302885,11.3632503,148.07,148.06,0.06]
[1751789304263,18.1168128,148.07,148.06,0.06]
[1751789305284,14.29457741,148.07,148.06,0.06]
[1751789305579,18.1168128,148.07,148.06,0.06]
[1751789309383,14.29457741,148.07,148.06,0.06]
[1751789309680,18.1168128,148.07,148.06,0.06]
[1751789314071,10.57579789,148.07,148.06,0.06]
[1751789314275,18.10296048,148.07,148.06,0.06]
[1751789317471,14.28072509,148.07,148.06,0.06]
[1751789317671,18.10296048,148.07,148.06,0.06]
[1751789320696,14.28072509,148.07,148.06,0.06]
[1751789320895,7.52716259,148.07,148.06,0.06]
[1751789321101,9.40895324,148.09,148.06,0.06]
[1751789321102,14.28045598,148.08,148.06,0.06]
[1751789321310,7.52716259,148.07,148.06,0.06]
[1751789322597,11.34939798,148.08,148.06,0.06]
[1751789322796,7.52716259,148.07,148.06,0.06]
[1751789325398,10.57504297,148.09,148.06,0.06]
[1751789325589,7.53805064,148.08,148.06,0.06]
[1751789325786,7.53805064,148.07,148.06,0.06]
[1751789327601,7.53805064,148.08,148.06,0.06]
[1751789327901,10.57489644,148.09,148.06,0.06]
[1751789328198,7.54181854,148.08,148.06,0.06]
[1751789328403,10.57489644,148.09,148.06,0.06]
[1751789328586,18.11915944,148.08,148.06,0.06]
[1751789328775,10.57541181,148.08,148.06,0.06]
[1751789329271,11.36538096,148.07,148.06,0.06]
[1751789331601,11.3670105,148.07,148.06,0.06]
[1751789331992,18.120573,148.07,148.06,0.06]
[1751789332384,36.77022186,148.07,148.06,0.06]
[1751789334288,46.20119075,148.07,148.06,0.06]
[1751789334883,36.77022186,148.07,148.03,0.06]
[1751789335199,3.82223539,148.04,148.03,0.06]
[1751789335391,11.3670105,148.04,148.03,0.06]
[1751789335985,18.12194159,148.04,148.03,0.06]
[1751789341296,27.55459969,148.04,148.03,0.06]
[1751789342320,18.12194159,148.04,148.03,0.06]
[1751789342882,14.2997062,148.04,148.03,0.06]
[1751789343084,18.12194159,148.04,148.03,0.06]
[1751789344287,11.3670105,148.04,148.03,0.06]
[1751789344490,7.54477511,148.04,148.03,0.06]
[1751789346701,11.3670105,148.04,148.03,0.06]
[1751789346896,18.12194159,148.04,148.03,0.06]
[1751789351521,27.55459969,148.04,148.03,0.06]
[1751789353096,18.12194159,148.04,148.03,0.06]
[1751789363520,14.2997062,148.04,148.03,0.06]
[1751789363718,18.12194159,148.04,148.03,0.06]
[1751789369024,18.10553767,148.04,148.03,0.06]
[1751789369337,36.75518653,148.04,148.03,0.06]
[1751789369644,46.16565052,148.04,148.03,1e-08]
[1751789369830,26.0,148.0,147.98,6.96]
[1751789370030,3.82223539,147.99,147.98,6.96]
[1751789370238,3.82223539,147.99,147.96,1.6128]
[1751789370655,3.82223539,147.99,147.96,0.1]
[1751789370951,3.82223539,147.98,147.96,0.1]
[1751789371156,3.82223539,147.97,147.96,0.1]
[1751789371353,10.58036203,147.97,147.96,0.1]
[1751789374045,18.11150799,147.97,147.96,0.1]
[1751789376428,7.53114596,147.97,147.96,0.1]
[1751789376628,7.53114596,147.98,147.96,0.1]
[1751789376830,7.53114596,147.97,147.96,0.1]
[1751789377329,7.53114596,147.97,147.96,3.92223539]
[1751789377530,3.82223539,147.98,147.96,0.1]
[1751789377752,7.53114596,147.97,147.96,0.1]
[1751789378660,10.5799337,147.98,147.96,0.1]
[1751789379846,5.98583445,147.98,147.96,0.1]
[1751789381660,7.53525092,148.0,147.97,5.98583445]
[1751789381959,7.53525092,147.99,147.97,5.98583445]
[1751789382161,6.75658935,148.01,147.97,5.98583445]
[1751789382349,7.53558536,148.0,147.97,5.98583445]
[1751789382533,7.53558536,147.99,147.98,5.98583445]
[1751789383840,7.53558536,148.01,147.98,5.98583445]
[1751789384139,7.53558536,148.0,147.98,5.98583445]
[1751789384337,32.75601199,148.02,147.98,5.98583445]
[1751789384549,7.53772719,148.01,147.98,5.98583445]
[1751789384739,7.53772719,148.0,147.98,5.98583445]
[1751789384932,32.75601199,148.02,147.98,5.98583445]
[1751789385143,7.53800615,148.01,147.98,12.74340135]
[1751789385457,12.74139326,148.03,147.98,12.74340135]
[1751789385458,12.74139326,148.03,147.99,5.98583445]
[1751789385651,7.53849337,148.02,147.99,5.98583445]
[1751789385850,7.53849337,148.01,147.99,5.98583445]
[1751789386056,12.74139326,148.03,147.99,5.98583445]
[1751789386253,7.54154734,148.02,147.99,5.98583445]
[1751789386553,7.54154734,148.01,147.99,5.98583445]
[1751789386759,12.74139326,148.03,147.98,12.74340135]
[1751789386953,7.5400022,148.02,147.98,12.74340135]
[1751789387153,7.5400022,148.01,147.98,12.74340135]
[1751789387350,12.74139326,148.03,147.98,12.74340135]
[1751789387551,7.54132616,148.02,147.98,12.74340135]
[1751789387861,7.54132616,148.01,147.99,5.98583445]
[1751789388061,12.74139326,148.03,147.99,5.98583445]
[1751789388358,7.5405312,148.02,147.99,5.98583445]
[1751789388551,7.5405312,148.01,147.99,5.98583445]
[1751789388862,12.74139326,148.03,147.99,5.98583445]
[1751789389066,7.54079374,148.02,147.99,5.98583445]
[1751789389246,7.54079374,148.01,148.0,5.98583445]
[1751789389457,7.54159781,148.03,148.0,5.98583445]
[1751789389763,7.54159781,148.02,148.0,5.98583445]
[1751789389944,12.74088661,148.04,148.0,5.98583445]
[1751789390146,7.54161633,148.03,148.0,5.98583445]
[1751789390360,7.54161633,148.02,148.0,5.98583445]
[1751789390541,42.16509967,148.05,148.0,12.7425393]
[1751789390862,7.54211471,148.04,148.0,12.7425393]
[1751789391062,7.54211471,148.03,148.0,12.7425393]
[1751789391369,7.54211471,148.02,148.0,12.7425393]
[1751789391554,38.74047013,148.05,148.0,12.7425393]
[1751789391740,7.54238298,148.04,148.0,12.7425393]
[1751789391942,7.54238298,148.03,148.0,12.7425393]
[1751789392274,26.0,148.05,148.01,5.98583445]
[1751789392477,7.5433677,148.04,148.01,5.98583445]
[1751789392641,7.5433677,148.03,148.01,5.98583445]
[1751789392840,26.0,148.05,148.01,5.98583445]
[1751789393063,7.54559452,148.04,148.01,5.98583445]
[1751789393264,7.54559452,148.03,148.01,5.98583445]
[1751789393562,26.0,148.05,148.01,5.98583445]
[1751789393768,7.54542146,148.04,148.01,5.98583445]
[1751789393957,7.54542146,148.03,148.01,5.98583445]
[1751789394160,31.98583445,148.05,148.01,5.98583445]
[1751789394450,7.54426845,148.04,148.01,5.98583445]
[1751789394656,7.54426845,148.03,148.01,5.98583445]
[1751789394836,31.98583445,148.05,148.01,5.98583445]
[1751789395040,7.54451654,148.04,148.01,5.98583445]
[1751789395366,7.54451654,148.03,148.01,5.98583445]
[1751789395552,38.74041105,148.05,148.01,5.98583445]
[1751789395754,7.54398532,148.04,148.01,5.98583445]
[1751789395965,7.54398532,148.03,148.01,5.98583445]
[1751789396162,38.74041105,148.05,148.01,5.98583445]
[1751789396359,14.29854331,148.04,147.99,6.75702824]
[1751789396668,7.54347629,148.03,148.0,5.98583445]
[1751789396856,12.74090147,148.04,148.0,5.98583445]
[1751789397049,7.54345999,148.03,148.0,5.98583445]
[1751789397249,12.74090147,148.04,148.0,5.98583445]
[1751789397462,7.54292582,148.03,148.0,5.98583445]
[1751789397663,12.74090147,148.04,147.99,12.74286269]
[1751789397849,7.54291965,148.03,147.99,12.74286269]
[1751789398051,12.74090147,148.04,147.99,12.74286269]
[1751789398351,7.54332423,148.03,147.99,12.74286269]
[1751789398541,12.74090147,148.04,147.99,12.74286269]
[1751789398746,7.54282468,148.03,147.99,12.74286269]
[1751789398951,12.74090147,148.04,147.99,12.74286269]
[1751789399255,7.54282468,148.03,147.99,12.74286269]
[1751789399455,12.74090147,148.04,147.99,12.74286269]
[1751789399657,7.54235471,148.03,147.99,12.74286269]
[1751789399864,12.74090147,148.04,147.99,12.74286269]
[1751789400069,7.54235471,148.03,147.99,12.74286269]
[1751789400369,12.74090147,148.04,147.99,12.74286269]
[1751789400568,7.54249469,148.03,147.99,12.74286269]
[1751789400768,12.74090147,148.04,147.99,12.74286269]
[1751789400956,7.54242718,148.03,147.99,12.74286269]
[1751789401157,12.74090147,148.04,147.99,12.74286269]
[1751789401365,7.54208679,148.03,147.99,12.74286269]
[1751789401670,12.74090147,148.04,147.99,12.74286269]
[1751789401853,7.5401602,148.03,147.99,12.74286269]
[1751789402052,12.74090147,148.04,147.99,12.74286269]
[1751789402252,7.53930496,148.03,147.99,12.74286269]
[1751789402453,12.74090147,148.04,147.99,12.74286269]
[1751789402759,7.53706423,148.03,147.99,12.74286269]
[1751789403055,12.74090147,148.04,147.99,12.74286269]
[1751789403256,7.53657411,148.03,147.99,12.74286269]
[1751789403466,12.74090147,148.04,147.99,12.74286269]
[1751789403663,7.53616242,148.03,147.99,12.74286269]
[1751789403871,6.75506702,148.04,147.99,12.74286269]
[1751789404053,7.53616242,148.03,148.0,5.98583445]
[1751789404377,12.74090147,148.04,148.0,5.98583445]
[1751789404566,7.53518444,148.03,148.0,5.98583445]
[1751789404866,12.74090147,148.04,148.0,5.98583445]
[1751789405063,7.53518444,148.03,148.0,5.98583445]
[1751789405274,12.74090147,148.04,148.0,5.98583445]
[1751789405477,7.53483091,148.03,147.99,6.75702824]
[1751789405658,12.74090147,148.04,148.0,5.98583445]
[1751789405857,7.53482809,148.03,148.0,5.98583445]
[1751789406073,12.74090147,148.04,148.0,5.98583445]
[1751789406274,7.53530844,148.03,148.0,12.74255256]
[1751789406461,38.74036579,148.05,148.0,12.74255256]
[1751789406663,7.53521163,148.04,148.01,5.98583445]
[1751789406862,0.03,148.06,148.03,5.98583445]
[1751789407178,0.03,148.06,148.05,5.98583445]
[1751789407872,0.03,148.06,148.05,3.8246486]
[1751789408269,0.03,148.06,148.05,25.69322343]
[1751789409861,0.03,148.06,148.05,27.84263811]
[1751789414981,0.03,148.06,148.05,175.14263811]
[1751789415173,0.03,148.06,148.05,209.22263811]
[1751789417288,0.03,148.1,148.09,26.0]
[1751789417481,0.03,148.15,148.09,26.0]
[1751789417482,0.03,148.15,148.09,213.33406328]
[1751789417681,0.03,148.15,148.13,5.97406328]
[1751789419087,0.03,148.15,148.12,5.97406328]
[1751789419276,0.03,148.15,148.11,5.97406328]
[1751789425300,0.03,148.15,148.11,5.97406328]
[1751789425596,0.03,148.15,148.12,5.97406328]
[1751789432199,0.03,148.15,148.11,5.97406328]
[1751789434311,0.03,148.15,148.09,66.87255801]
[1751789434480,6.00406328,148.15,148.1,5.97406328]
[1751789434681,5.97406328,148.14,148.09,46.84662129]
[1751789435004,5.97406328,148.13,148.09,6.03406328]
[1751789435798,5.97406328,148.13,148.09,0.06]
[1751789436184,7.52752415,148.15,148.09,0.06]
[1751789436510,5.97406328,148.13,148.09,6.03406328]
[1751789437721,12.7249102,148.13,148.09,6.03406328]
[1751789437893,6.75084692,148.13,148.09,6.03406328]
[1751789445316,12.72459951,148.14,148.1,5.97406328]
[1751789446008,12.72459951,148.14,148.11,5.97406328]
[1751789446009,6.75053623,148.14,148.11,5.97406328]
[1751789446910,14.27042914,148.14,148.1,5.97406328]
[1751789447214,20.24449242,148.14,148.1,5.97406328]
[1751789447517,12.72459951,148.14,148.1,5.97406328]
[1751789449214,6.75053623,148.14,148.1,5.97406328]
[1751789449417,6.75053623,148.14,148.09,6.81261819]
[1751789449620,7.53158125,148.13,148.1,5.97406328]
[1751789450314,6.75053623,148.14,148.1,5.97406328]
[1751789450511,14.28875307,148.13,148.1,5.97406328]
[1751789450713,6.75105996,148.13,148.1,5.97406328]
[1751789451509,7.54629365,148.12,148.1,5.97406328]
[1751789451706,6.75105996,148.13,148.1,5.97406328]
[1751789452023,7.54629365,148.12,148.09,6.03406328]
[1751789452204,6.75105996,148.13,148.09,6.03406328]
[1751789452401,7.54975797,148.12,148.09,6.03406328]
[1751789452620,6.75105996,148.13,148.09,6.03406328]
[1751789452814,7.54999929,148.12,148.09,6.03406328]
[1751789453017,6.75105996,148.13,148.1,0.06]
[1751789453315,7.55000545,148.12,148.1,0.06]
[1751789453519,6.75105996,148.13,148.1,0.06]
[1751789453821,7.55191791,148.12,148.1,0.06]
[1751789454122,6.75105996,148.13,148.1,0.06]
[1751789454320,7.55191791,148.12,148.1,0.06]
[1751789454620,7.55191791,148.11,148.1,0.06]
[1751789458807,18.12702035,148.11,148.1,0.06]
[1751789459528,18.12906514,148.11,148.1,0.06]
[1751789459724,36.778714,148.11,148.1,0.06]
[1751789460225,46.22116738,148.11,148.1,0.06]
[1751789461335,36.778714,148.11,148.1,0.06]
[1751789461833,38.932725,148.11,148.1,0.06]
[1751789462418,74.37517838,148.11,148.1,0.06]
[1751789463519,74.37517838,148.11,148.09,0.06]
[1751789463520,25.40184332,148.1,148.09,0.06]
[1751789463710,38.93318089,148.1,148.09,0.06]
[1751789464620,48.36454587,148.1,148.09,0.06]
[1751789464822,48.34798478,148.1,148.09,0.06]
[1751789465135,31.37921819,148.1,148.09,0.06]
[1751789465432,38.91796796,148.1,148.09,0.06]
[1751789465821,49.98210518,148.1,148.09,0.06]
[1751789467329,40.55866796,148.1,148.09,0.06]
[1751789471935,40.55866796,148.1,148.09,0.06]
[1751789476324,57.43915411,148.1,148.02,6.94]
[1751789476536,5.97737487,148.05,148.02,6.94]
[1751789477919,12.73197949,148.05,148.02,6.94]
[1751789478120,6.75460462,148.05,148.02,6.94]
[1751789478319,12.73197949,148.05,148.02,6.94]
[1751789479140,12.23197949,148.05,148.02,6.94]
[1751789480520,5.97737487,148.06,148.02,6.94]
[1751789481748,6.75447483,148.05,148.02,6.94]
[1751789482730,10.58160831,148.05,148.02,6.94]
[1751789484947,3.82713348,148.06,148.02,6.94]
[1751789485350,3.82713348,148.03,148.02,6.94]
[1751789485647,3.82713348,148.03,147.98,7.8204]
[1751789486444,3.82713348,148.03,147.98,1.5166]
[1751789486832,10.58297728,148.02,147.97,33.00713348]
[1751789487031,3.82713348,148.01,147.96,10.88713348]
[1751789487839,5.98359836,148.01,147.96,19.80216754]
[1751789488142,6.7558438,148.02,147.97,5.98359836]
[1751789488447,12.73944216,148.02,147.97,5.98359836]
[1751789489624,6.75493109,148.04,147.99,5.98359836]
[1751789489838,5.98359836,148.06,148.01,5.98359836]
[1751789490039,5.98359836,148.06,147.98,1.6104]
[1751789490040,7.50648366,148.06,148.02,5.98359836]
[1751789490945,14.26066026,148.06,148.02,5.98359836]
[1751789492337,14.26066026,148.06,148.0,6.75664172]
[1751789492338,20.24425862,148.06,148.01,5.98359836]
[1751789492543,7.50648366,148.05,148.01,5.98359836]
[1751789493955,14.26100045,148.05,148.01,5.98359836]
[1751789494532,6.75451679,148.05,148.01,5.98359836]
[1751789494944,14.26153628,148.05,148.01,5.98359836]
[1751789495151,12.737617,148.06,148.01,5.98359836]
[1751789495345,7.50684658,148.05,148.01,5.98359836]
[1751789495862,12.737617,148.06,148.01,5.98359836]
[1751789498756,12.767617,148.06,148.01,5.98359836]
[1751789499548,12.73529726,148.06,148.0,0.06]
[1751789500052,12.73529726,148.06,148.01,5.98359836]
[1751789501358,7.52294902,148.05,148.01,5.98359836]
[1751789501855,12.767617,148.06,148.01,5.98359836]
[1751789502059,7.52510088,148.05,148.01,5.98359836]
[1751789502363,12.767617,148.06,148.01,5.98359836]
[1751789502659,7.52886957,148.05,148.01,5.98359836]
[1751789502834,12.767617,148.06,148.01,5.98359836]
[1751789503030,7.52887238,148.05,148.01,5.98359836]
[1751789503235,12.767617,148.06,148.01,5.98359836]
[1751789503458,5.98359836,148.04,148.0,0.06]
[1751789503957,13.51577532,148.03,148.0,0.06]
[1751789504163,5.98359836,148.03,148.0,0.06]
[1751789505138,12.73909489,148.03,148.0,0.06]
[1751789505540,16.9150466,148.06,148.0,6.04359836]
[1751789505541,6.75511318,148.04,148.0,6.04359836]
[1751789506147,7.53620043,148.03,148.0,6.04359836]
[1751789506348,12.73821741,148.05,148.0,6.04359836]
[1751789506546,7.53620661,148.04,148.0,6.04359836]
[1751789506856,12.73821741,148.05,148.0,6.04359836]
[1751789507050,7.53648168,148.04,148.0,6.04359836]
[1751789507252,12.73821741,148.05,148.0,12.80031043]
[1751789507435,7.53821623,148.04,148.0,12.80031043]
[1751789507631,12.73821741,148.05,148.0,12.80031043]
[1751789507836,7.53821905,148.04,148.0,10.64429085]
[1751789508054,10.58219783,148.05,148.0,10.64429085]
[1751789508377,7.53912576,148.04,148.0,10.64429085]
[1751789508582,10.58219783,148.05,148.0,10.64429085]
[1751789508870,7.54007554,148.04,148.0,10.64429085]
[1751789509041,10.58219783,148.05,148.0,10.64429085]
[1751789509240,7.54080807,148.04,148.0,0.06]
[1751789509476,7.54052674,148.03,148.0,0.06]
[1751789509760,3.82757878,148.04,148.0,0.06]
[1751789509971,7.54025438,148.03,148.0,0.06]
[1751789510137,3.82757878,148.04,148.0,0.06]
[1751789510335,7.54064091,148.03,148.0,0.06]
[1751789510569,3.82757878,148.04,148.0,0.06]
[1751789510867,7.54064091,148.03,148.0,0.06]
[1751789511049,10.58272218,148.04,148.0,0.06]
[1751789511248,7.5408665,148.03,148.0,0.06]
[1751789511450,10.58272218,148.04,148.0,0.06]
[1751789511763,7.5408665,148.03,148.0,3.88757878]
[1751789511946,6.7551434,148.04,148.0,3.88757878]
[1751789512259,7.5411417,148.03,148.0,0.06]
[1751789512466,10.58272218,148.04,148.0,0.06]
[1751789512667,7.54125143,148.03,148.0,0.06]
[1751789512868,10.58272218,148.04,148.0,0.06]
[1751789513074,7.54125143,148.03,148.0,0.06]
[1751789513248,10.58272218,148.04,148.0,0.06]
[1751789513449,7.54159732,148.03,148.0,0.06]
[1751789513664,10.58272218,148.04,148.0,0.06]
[1751789513962,7.54159449,148.03,148.0,0.06]
[1751789514147,10.58272218,148.04,148.0,0.06]
[1751789514348,7.54209351,148.03,148.0,0.06]
[1751789514547,10.58272218,148.04,148.0,0.06]
[1751789514548,7.54209351,148.02,148.0,0.06]
[1751789514743,10.58272218,148.04,148.0,0.06]
[1751789514955,7.54209068,148.03,148.0,0.06]
[1751789515155,7.54209068,148.02,148.0,3.88757878]
[1751789515353,7.54308239,148.04,148.01,3.82757878]
[1751789515557,0.03,148.06,148.03,3.82757878]
[1751789515862,0.03,148.06,148.05,3.82757878]
[1751789516179,7.57408125,148.06,148.05,3.82757878]
[1751789517166,7.57408125,148.06,148.04,3.82757878]
[1751789517349,0.03,148.06,148.04,3.82757878]
[1751789517857,7.54152455,148.05,148.04,5.97787292]
[1751789518146,0.03,148.06,148.04,5.97787292]
[1751789518355,0.03,148.06,148.05,5.97787292]
[1751789519350,0.03,148.06,148.05,12.73234775]
[1751789521566,0.03,148.06,148.05,6.75447483]
[1751789521755,0.03,148.06,148.05,5.97787292]
[1751789524771,0.03,148.06,148.04,47.07787292]
[1751789525071,0.03,148.06,148.04,6.98]
[1751789525272,0.03,148.06,148.04,12.95787292]
[1751789537776,0.03,148.06,148.04,10.80552058]
[1751789540190,0.03,148.06,148.05,3.82552058]
[1751789548301,0.03,148.06,148.04,10.80552058]
[1751789550200,0.03,148.06,148.05,3.82552058]
[1751789552604,0.03,148.06,148.05,10.57999541]
[1751789556411,0.03,148.06,148.05,44.65999541]
[1751789558612,0.03,148.06,148.05,37.90552058]
[1751789558806,0.03,148.06,148.05,44.65999541]
[1751789575203,0.03,148.06,148.05,40.83447483]
[1751789575427,0.03,148.06,148.05,44.65999541]
[1751789585621,0.03,148.06,148.05,44.71999541]
[1751789587910,0.03,148.06,148.05,192.01999541]
[1751789588942,0.03,148.06,148.05,63.36964427]
[1751789589330,1e-08,148.06,148.05,78.67172659]
[1751789589527,1e-08,148.06,148.05,80.30442659]